[Event "Kupreichik Memorial Open 2018"]
[Site "Minsk"]
[Date "2018.06.21"]
[Round "4"]
[White "Sukalina, Alina"]
[Black "Kuznetsov, Mikhail V"]
[Result "0-1"]
[ECO "D37"]
[WhiteElo "1673"]
[BlackElo "2162"]
[Annotator "NA"]
[PlyCount "60"]
[EventDate "2018.06.21"]
[EventCountry "BLR"]
[SourceTitle "playchess.com"]
[Source "ChessBase"]
[SourceQuality "1"]
[TimeControl "900+10"]

1. d4 {[%emt 0:00:00]} Nf6 {[%emt 0:00:02]} 2. c4 {[%emt 0:00:04]} e6 {[%emt 0:00:03]} 3. Nf3 {[%emt 0:00:04]} d5 {[%emt 0:00:05]} 4. Nc3 {[%emt 0:00:07]} Nbd7 {[%emt 0:00:06]} 5. Bg5 {[%emt 0:00:53]} Bb4 {[%emt 0:00:11]} 6. a3 {[%emt 0:00:11]} Bxc3+ {[%emt 0:00:17]} 7. bxc3 {[%emt 0:00:04]} dxc4 {[%emt 0:00:27]} 8. e4 {[%emt 0:01:40]} b5 {[%emt 0:00:45]} 9. Qb1 {[%emt 0:05:05]} c6 {[%emt 0:00:42]} 10. e5 {[%emt 0:00:43]} h6 {[%emt 0:00:36]} 11. exf6 {[%emt 0:00:07]} hxg5 {[%emt 0:00:41]} 12. fxg7 {[%emt 0:00:01]} Rg8 {[%emt 0:00:05]} 13. Qh7 {[%emt 0:02:03]} Nf6 {[%emt 0:00:06]} 14. Qh6 {[%emt 0:00:48]} Nd5 {[%emt 0:03:47]} 15. Ne5 {[%emt 0:03:45]} Qf6 {[%emt 0:03:46]} 16. Qxf6 {[%emt 0:00:21]} Nxf6 {[%emt 0:00:02]} 17. Nxc6 {[%emt 0:00:20]} Bb7 {[%emt 0:00:14]} 18. Ne5 {[%emt 0:00:33]} Rxg7 {[%emt 0:00:08]} 19. f3 {[%emt 0:00:59]} Nd5 {[%emt 0:00:14]} 20. Kd2 {[%emt 0:00:13]} f6 {[%emt 0:00:16]} 21. Ng4 {[%emt 0:00:05]} a5 {[%emt 0:00:22]} 22. Be2 {[%emt 0:00:15]} Rc7 {[%emt 0:00:10]} 23. Rhc1 {[%emt 0:00:16]} Ke7 {[%emt 0:00:19]} 24. g3 {[%emt 0:00:05]} b4 {[%emt 0:00:09]} 25. axb4 {[%emt 0:00:02]} axb4 {[%emt 0:00:03]} 26. cxb4 {[%emt 0:00:22]} c3+ {[%emt 0:00:07]} 27. Kc2 {[%emt 0:00:09]} Nxb4+ {[%emt 0:00:41]} 28. Kb3 {[%emt 0:00:12]} Rb8 {[%emt 0:01:55]} 29. Rxc3 {[%emt 0:00:09]} Bd5+ {[%emt 0:00:12]} 30. Kb2 {[%emt 0:00:13]} Na2+ {[%emt 0:00:10] Kc1 [%clk 0:00:13] Nb4} 0-1

[Event "Kupreichik Memorial Open 2018"]
[Site "Minsk"]
[Date "2018.06.21"]
[Round "4"]
[White "Ustiugov, Boris"]
[Black "Runets, Ivan"]
[Result "0-1"]
[ECO "D01"]
[WhiteElo "1614"]
[BlackElo "2027"]
[Annotator "NA"]
[PlyCount "96"]
[EventDate "2018.06.21"]
[EventCountry "BLR"]
[SourceTitle "playchess.com"]
[Source "ChessBase"]
[SourceQuality "1"]
[TimeControl "900+10"]

1. d4 {[%emt 0:00:00]} Nf6 {[%emt 0:00:02]} 2. Nc3 {[%emt 0:00:00]} d5 {[%emt 0:00:03]} 3. Bg5 {[%emt 0:00:05]} Bf5 {[%emt 0:00:09]} 4. e3 {[%emt 0:00:22]} e6 {[%emt 0:00:06]} 5. Bd3 {[%emt 0:00:11]} Bg6 {[%emt 0:00:02]} 6. f3 {[%emt 0:00:09]} Be7 {[%emt 0:00:57]} 7. Bh4 {[%emt 0:00:14]} O-O {[%emt 0:00:37]} 8. Nge2 {[%emt 0:00:07]} c5 {[%emt 0:00:13]} 9. O-O {[%emt 0:00:30]} Nc6 {[%emt 0:00:11]} 10. a3 {[%emt 0:00:32]} Nd7 {[%emt 0:00:20]} 11. Bf2 {[%emt 0:00:15]} cxd4 {[%emt 0:00:13]} 12. exd4 {[%emt 0:00:08]} Bf6 {[%emt 0:00:15]} 13. Bxg6 {[%emt 0:00:23]} hxg6 {[%emt 0:00:01]} 14. Qd2 {[%emt 0:00:18]} Rc8 {[%emt 0:00:17]} 15. Rac1 {[%emt 0:00:02]} Qe7 {[%emt 0:00:53]} 16. Rfe1 {[%emt 0:00:34]} Nb6 {[%emt 0:00:04]} 17. Rcd1 {[%emt 0:00:23]} Bg5 {[%emt 0:01:11]} 18. f4 {[%emt 0:00:07]} Bf6 {[%emt 0:00:01]} 19. Kh1 {[%emt 0:01:20]} Na5 {[%emt 0:00:59]} 20. Qc1 {[%emt 0:00:43]} Nac4 {[%emt 0:00:11]} 21. Rd3 {[%emt 0:01:44]} Bh4 {[%emt 0:01:31]} 22. g3 {[%emt 0:00:38]} Bf6 {[%emt 0:00:02]} 23. Ng1 {[%emt 0:00:13]} Rc6 {[%emt 0:02:16]} 24. Nf3 {[%emt 0:00:06]} Rfc8 {[%emt 0:00:04]} 25. Ne5 {[%emt 0:00:09]} Bxe5 {[%emt 0:00:09]} 26. fxe5 {[%emt 0:00:58]} Nxa3 {[%emt 0:00:33]} 27. bxa3 {[%emt 0:02:18]} Rxc3 {[%emt 0:00:03]} 28. Rxc3 {[%emt 0:00:15]} Rxc3 {[%emt 0:00:01]} 29. Re3 {[%emt 0:00:24]} Qc7 {[%emt 0:00:11]} 30. Re2 {[%emt 0:00:26]} Qc4 {[%emt 0:00:15]} 31. Rd2 {[%emt 0:00:15]} Qa2 {[%emt 0:00:09]} 32. Qd1 {[%emt 0:01:04]} Nc4 {[%emt 0:00:05]} 33. Re2 {[%emt 0:00:06]} Nxa3 {[%emt 0:00:27]} 34. Bg1 {[%emt 0:00:56]} Rxc2 {[%emt 0:00:14]} 35. Re3 {[%emt 0:00:23]} Nc4 {[%emt 0:00:11]} 36. Rf3 {[%emt 0:00:27]} Qb2 {[%emt 0:00:37]} 37. Qd3 {[%emt 0:01:57]} a5 {[%emt 0:00:27]} 38. Rf1 {[%emt 0:00:26]} Qc3 {[%emt 0:00:35]} 39. Qd1 {[%emt 0:00:33]} Qd2 {[%emt 0:00:12]} 40. Qf3 {[%emt 0:00:11]} Qe2 {[%emt 0:00:45]} 41. Qxf7+ {[%emt 0:00:23]} Kh7 {[%emt 0:00:01]} 42. Rf2 {[%emt 0:00:06]} Qe4+ {[%emt 0:00:02]} 43. Qf3 {[%emt 0:01:11]} Qxf3+ {[%emt 0:00:03]} 44. Rxf3 {[%emt 0:00:01]} a4 {[%emt 0:00:02]} 45. Rf7 {[%emt 0:00:24]} Rb2 {[%emt 0:00:17]} 46. Re7 {[%emt 0:00:02]} a3 {[%emt 0:00:02]} 47. Re8 {[%emt 0:00:31]} a2 {[%emt 0:00:21]} 48. Ra8 {[%emt 0:00:02]} b5 {[%emt 0:00:03]} 0-1

[Event "Kupreichik Memorial Open 2018"]
[Site "Minsk"]
[Date "2018.06.21"]
[Round "4"]
[White "Halouchyts, Karalina"]
[Black "Gavrjuchenkova, Angelina"]
[Result "1/2-1/2"]
[ECO "C70"]
[WhiteElo "1603"]
[BlackElo "1900"]
[Annotator "NA"]
[PlyCount "67"]
[EventDate "2018.06.21"]
[EventCountry "BLR"]
[SourceTitle "playchess.com"]
[Source "ChessBase"]
[SourceQuality "1"]
[TimeControl "900+10"]

1. e4 {[%emt 0:00:00]} e5 {[%emt 0:00:03]} 2. Nf3 {[%emt 0:00:00]} Nc6 {[%emt 0:00:01]} 3. Bb5 {[%emt 0:00:00]} a6 {[%emt 0:00:02]} 4. Ba4 {[%emt 0:00:00]} b5 {[%emt 0:00:03]} 5. Bb3 {[%emt 0:00:01]} Bc5 {[%emt 0:01:23]} 6. O-O {[%emt 0:00:48]} Nf6 {[%emt 0:00:13]} 7. Re1 {[%emt 0:00:53]} Ng4 {[%emt 0:02:10]} 8. Re2 {[%emt 0:01:04]} O-O {[%emt 0:00:33]} 9. h3 {[%emt 0:00:20]} Nxf2 {[%emt 0:00:51]} 10. Rxf2 {[%emt 0:00:14]} Bxf2+ {[%emt 0:00:12]} 11. Kxf2 {[%emt 0:00:04]} Nd4 {[%emt 0:00:46]} 12. d3 {[%emt 0:01:18]} Nxb3 {[%emt 0:01:12]} 13. axb3 {[%emt 0:00:08]} d5 {[%emt 0:00:54]} 14. Nc3 {[%emt 0:01:05]} dxe4 {[%emt 0:00:44]} 15. dxe4 {[%emt 0:00:20]} Qf6 {[%emt 0:02:54]} 16. Qd5 {[%emt 0:03:39]} Be6 {[%emt 0:00:44]} 17. Qxe5 {[%emt 0:01:31]} Qxe5 {[%emt 0:00:20]} 18. Nxe5 {[%emt 0:00:05]} f5 {[%emt 0:00:02]} 19. Kg1 {[%emt 0:03:47]} fxe4 {[%emt 0:00:08]} 20. Be3 {[%emt 0:02:35]} Rae8 {[%emt 0:01:15]} 21. Nc6 {[%emt 0:00:19]} Bd7 {[%emt 0:00:30]} 22. Nd4 {[%emt 0:00:12]} c5 {[%emt 0:00:56]} 23. Nde2 {[%emt 0:00:09]} b4 {[%emt 0:00:29]} 24. Nd5 {[%emt 0:00:11]} Bb5 {[%emt 0:00:13]} 25. Re1 {[%emt 0:00:15]} Rf5 {[%emt 0:00:40]} 26. Nc7 {[%emt 0:00:04]} Ref8 {[%emt 0:00:30]} 27. Nxb5 {[%emt 0:00:12]} axb5 {[%emt 0:00:01]} 28. Ng3 {[%emt 0:00:06]} Re5 {[%emt 0:00:16]} 29. Bf2 {[%emt 0:00:13]} Rfe8 {[%emt 0:00:11]} 30. Be3 {[%emt 0:00:10]} h6 {[%emt 0:00:09]} 31. Bf4 {[%emt 0:00:08]} R5e6 {[%emt 0:00:38]} 32. Be3 {[%emt 0:00:15]} Re5 {[%emt 0:00:02]} 33. Bf4 {[%emt 0:00:06]} R5e6 {[%emt 0:00:03]} 34. Be3 {[%emt 0:00:06]} 1/2-1/2

[Event "Kupreichik Memorial Open 2018"]
[Site "Minsk"]
[Date "2018.06.21"]
[Round "4"]
[White "Tkachou, Pavel"]
[Black "Kaliadzich, Maryia"]
[Result "1/2-1/2"]
[ECO "D02"]
[WhiteElo "1535"]
[BlackElo "2058"]
[Annotator "NA"]
[PlyCount "59"]
[EventDate "2018.06.21"]
[EventCountry "BLR"]
[SourceTitle "playchess.com"]
[Source "ChessBase"]
[SourceQuality "1"]
[TimeControl "900+10"]

1. d4 {[%emt 0:00:00]} d5 {[%emt 0:00:01]} 2. Nf3 {[%emt 0:00:00]} Nf6 {[%emt 0:00:01]} 3. g3 {[%emt 0:00:00]} Bf5 {[%emt 0:00:08]} 4. Bg2 {[%emt 0:00:00]} h6 {[%emt 0:00:05]} 5. c4 {[%emt 0:00:02]} e6 {[%emt 0:00:03]} 6. Nc3 {[%emt 0:00:13]} Be7 {[%emt 0:00:23]} 7. O-O {[%emt 0:00:51]} c6 {[%emt 0:00:09]} 8. Re1 {[%emt 0:00:19]} O-O {[%emt 0:00:36]} 9. Nh4 {[%emt 0:00:17]} Bh7 {[%emt 0:00:10]} 10. cxd5 {[%emt 0:02:03]} cxd5 {[%emt 0:00:24]} 11. Nf3 {[%emt 0:00:54]} Nc6 {[%emt 0:00:07]} 12. Ne5 {[%emt 0:00:12]} Nb4 {[%emt 0:00:41]} 13. e4 {[%emt 0:00:40]} Rc8 {[%emt 0:00:52]} 14. a3 {[%emt 0:00:12]} Nc6 {[%emt 0:00:14]} 15. exd5 {[%emt 0:00:07]} Nxd5 {[%emt 0:00:07]} 16. Nxd5 {[%emt 0:00:05]} exd5 {[%emt 0:00:05]} 17. Qg4 {[%emt 0:01:11]} f5 {[%emt 0:01:32]} 18. Qf3 {[%emt 0:03:27]} Nxd4 {[%emt 0:01:22]} 19. Qxd5+ {[%emt 0:00:14]} Qxd5 {[%emt 0:00:39]} 20. Bxd5+ {[%emt 0:00:01]} Kh8 {[%emt 0:00:02]} 21. Be3 {[%emt 0:01:08]} Nc2 {[%emt 0:00:59]} 22. Nf7+ {[%emt 0:00:09]} Rxf7 {[%emt 0:00:10]} 23. Bxf7 {[%emt 0:00:05]} Nxa1 {[%emt 0:00:13]} 24. Rxa1 {[%emt 0:00:04]} b6 {[%emt 0:00:26]} 25. Bd4 {[%emt 0:00:34]} Rd8 {[%emt 0:01:39]} 26. Bc3 {[%emt 0:00:10]} f4 {[%emt 0:00:41]} 27. Re1 {[%emt 0:01:34]} Bc5 {[%emt 0:01:28]} 28. gxf4 {[%emt 0:00:27]} Bf5 {[%emt 0:01:19]} 29. Re8+ {[%emt 0:00:09]} Rxe8 {[%emt 0:00:02]} 30. Bxe8 {[%emt 0:00:01]} 1/2-1/2

[Event "Kupreichik Memorial Open 2018"]
[Site "Minsk"]
[Date "2018.06.21"]
[Round "4"]
[White "Hurman, Pavel"]
[Black "Polovkov, Valery"]
[Result "0-1"]
[ECO "B00"]
[WhiteElo "1283"]
[BlackElo "1830"]
[Annotator "NA"]
[PlyCount "35"]
[EventDate "2018.06.21"]
[EventCountry "BLR"]
[SourceTitle "playchess.com"]
[Source "ChessBase"]
[SourceQuality "1"]
[TimeControl "900+10"]

1. e4 {[%emt 0:00:00]} b6 {[%emt 0:00:10]} 2. d4 {[%emt 0:00:00]} Bb7 {[%emt 0:00:02]} 3. Bd3 {[%emt 0:00:01]} e6 {[%emt 0:00:03]} 4. c3 {[%emt 0:00:12]} g6 {[%emt 0:00:07]} 5. Nf3 {[%emt 0:00:15]} Bg7 {[%emt 0:00:02]} 6. O-O {[%emt 0:00:06]} Ne7 {[%emt 0:00:02]} 7. Bg5 {[%emt 0:00:10]} h6 {[%emt 0:00:30]} 8. Bf4 {[%emt 0:00:08]} g5 {[%emt 0:00:27]} 9. Bg3 {[%emt 0:00:09]} d6 {[%emt 0:00:06]} 10. Re1 {[%emt 0:00:05]} Nd7 {[%emt 0:00:02]} 11. Nbd2 {[%emt 0:00:57]} a6 {[%emt 0:00:06]} 12. Nc4 {[%emt 0:00:39]} O-O {[%emt 0:01:59]} 13. Nfd2 {[%emt 0:00:18]} Ng6 {[%emt 0:01:22]} 14. Rf1 {[%emt 0:00:39]} Nf4 {[%emt 0:00:28]} 15. Bxf4 {[%emt 0:00:20]} gxf4 {[%emt 0:00:01]} 16. Qg4 {[%emt 0:00:57]} e5 {[%emt 0:00:10]} 17. dxe5 {[%emt 0:00:29]} dxe5 {[%emt 0:00:03]} 18. Bc2 {[%emt 0:00:06]} 0-1

[Event "Kupreichik Memorial Open 2018"]
[Site "Minsk"]
[Date "2018.06.22"]
[Round "5"]
[White "Nikitenko, Mihail"]
[Black "Naumovich, Yaroslav"]
[Result "1-0"]
[ECO "B10"]
[WhiteElo "2401"]
[BlackElo "1959"]
[Annotator "NA"]
[PlyCount "93"]
[EventDate "2018.06.21"]
[EventCountry "BLR"]
[SourceTitle "playchess.com"]
[Source "ChessBase"]
[SourceQuality "1"]
[TimeControl "900+10"]

1. e4 {[%emt 0:00:00]} c6 {[%emt 0:00:01]} 2. Nc3 {[%emt 0:00:00]} d5 {[%emt 0:00:02]} 3. Nf3 {[%emt 0:00:00]} dxe4 {[%emt 0:00:02]} 4. Nxe4 {[%emt 0:00:03]} Nf6 {[%emt 0:00:02]} 5. Qe2 {[%emt 0:00:02]} Nxe4 {[%emt 0:00:02]} 6. Qxe4 {[%emt 0:00:02]} Nd7 {[%emt 0:00:02]} 7. Bc4 {[%emt 0:00:02]} Nf6 {[%emt 0:00:02]} 8. Ne5 {[%emt 0:00:02]} e6 {[%emt 0:00:06]} 9. Qe2 {[%emt 0:00:02]} Be7 {[%emt 0:00:01]} 10. d3 {[%emt 0:00:02]} O-O {[%emt 0:00:04]} 11. O-O {[%emt 0:00:03]} Nd5 {[%emt 0:02:59]} 12. Bd2 {[%emt 0:03:24]} Bf6 {[%emt 0:00:35]} 13. Rae1 {[%emt 0:00:04]} Qc7 {[%emt 0:01:31]} 14. Bb3 {[%emt 0:00:01]} Bxe5 {[%emt 0:01:24]} 15. Qxe5 {[%emt 0:00:02]} Qxe5 {[%emt 0:00:01]} 16. Rxe5 {[%emt 0:00:02]} Bd7 {[%emt 0:00:02]} 17. c4 {[%emt 0:02:26]} Ne7 {[%emt 0:00:48]} 18. Bc3 {[%emt 0:00:44]} Ng6 {[%emt 0:00:15]} 19. Re3 {[%emt 0:00:50]} c5 {[%emt 0:01:12]} 20. d4 {[%emt 0:00:01]} cxd4 {[%emt 0:00:17]} 21. Bxd4 {[%emt 0:00:02]} Bc6 {[%emt 0:00:09]} 22. g3 {[%emt 0:01:21]} Rfd8 {[%emt 0:00:38]} 23. Bc3 {[%emt 0:00:01]} Ne7 {[%emt 0:01:48]} 24. g4 {[%emt 0:00:01]} Rd7 {[%emt 0:01:38]} 25. Bc2 {[%emt 0:00:11]} Rad8 {[%emt 0:00:53]} 26. f4 {[%emt 0:00:03]} b6 {[%emt 0:02:59]} 27. f5 {[%emt 0:00:12]} exf5 {[%emt 0:00:10]} 28. gxf5 {[%emt 0:00:02]} f6 {[%emt 0:00:18]} 29. Re6 {[%emt 0:01:02]} Kf7 {[%emt 0:00:46]} 30. Rfe1 {[%emt 0:00:09]} Bb7 {[%emt 0:00:32]} 31. c5 {[%emt 0:06:49]} bxc5 {[%emt 0:00:39]} 32. Ba4 {[%emt 0:00:01]} Rc7 {[%emt 0:00:19]} 33. Ba5 {[%emt 0:00:05]} Rdc8 {[%emt 0:00:09]} 34. Bxc7 {[%emt 0:00:05]} Rxc7 {[%emt 0:00:01]} 35. Bc2 {[%emt 0:00:01]} Bd5 {[%emt 0:00:09]} 36. Ra6 {[%emt 0:00:09]} Rb7 {[%emt 0:00:16]} 37. Ra5 {[%emt 0:01:00]} Rc7 {[%emt 0:00:17]} 38. Re3 {[%emt 0:00:05]} Ba8 {[%emt 0:00:10]} 39. Rea3 {[%emt 0:00:14]} Rd7 {[%emt 0:00:06]} 40. Rxa7 {[%emt 0:00:08]} Rd2 {[%emt 0:00:04]} 41. Bb3+ {[%emt 0:00:02]} Bd5 {[%emt 0:00:01]} 42. Bxd5+ {[%emt 0:00:04]} Rxd5 {[%emt 0:00:02]} 43. Re3 {[%emt 0:00:01]} Re5 {[%emt 0:00:03]} 44. Rxe5 {[%emt 0:00:08]} fxe5 {[%emt 0:00:01]} 45. a4 {[%emt 0:00:03]} Kf6 {[%emt 0:00:01]} 46. a5 {[%emt 0:00:04]} Nd5 {[%emt 0:00:20]} 47. a6 {[%emt 0:00:03]} 1-0

[Event "Kupreichik Memorial Open 2018"]
[Site "Minsk"]
[Date "2018.06.22"]
[Round "5"]
[White "Zhukova, Natalia"]
[Black "Uzlavataya, Anhelina"]
[Result "1-0"]
[ECO "A10"]
[WhiteElo "2356"]
[BlackElo "1925"]
[Annotator "NA"]
[PlyCount "49"]
[EventDate "2018.06.21"]
[EventCountry "BLR"]
[SourceTitle "playchess.com"]
[Source "ChessBase"]
[SourceQuality "1"]
[TimeControl "900+10"]

1. c4 {[%emt 0:00:00]} f5 {[%emt 0:00:02]} 2. Nc3 {[%emt 0:00:00]} Nf6 {[%emt 0:00:02]} 3. Nf3 {[%emt 0:00:00]} g6 {[%emt 0:00:03]} 4. d3 {[%emt 0:00:05]} Bg7 {[%emt 0:00:04]} 5. e4 {[%emt 0:00:01]} fxe4 {[%emt 0:01:57]} 6. dxe4 {[%emt 0:00:02]} d6 {[%emt 0:00:04]} 7. Be2 {[%emt 0:00:17]} e5 {[%emt 0:00:07]} 8. c5 {[%emt 0:00:42]} dxc5 {[%emt 0:03:17]} 9. Qxd8+ {[%emt 0:00:09]} Kxd8 {[%emt 0:00:01]} 10. Nxe5 {[%emt 0:00:02]} Ke7 {[%emt 0:00:56]} 11. Bg5 {[%emt 0:02:04]} c6 {[%emt 0:01:14]} 12. Nd3 {[%emt 0:01:59]} c4 {[%emt 0:01:51]} 13. Nf4 {[%emt 0:00:10]} Nbd7 {[%emt 0:01:09]} 14. Bxc4 {[%emt 0:02:33]} Ne5 {[%emt 0:00:01]} 15. Bb3 {[%emt 0:00:01]} h6 {[%emt 0:02:02]} 16. Nfd5+ {[%emt 0:01:04]} cxd5 {[%emt 0:00:20]} 17. Nxd5+ {[%emt 0:00:01]} Kd6 {[%emt 0:01:22]} 18. Bxf6 {[%emt 0:00:24]} Bxf6 {[%emt 0:00:02]} 19. Nxf6 {[%emt 0:00:18]} Rf8 {[%emt 0:00:18]} 20. Rd1+ {[%emt 0:00:28]} Kc6 {[%emt 0:00:23]} 21. Nd5 {[%emt 0:00:06]} Bd7 {[%emt 0:01:29]} 22. O-O {[%emt 0:00:22]} Rae8 {[%emt 0:00:57]} 23. Rc1+ {[%emt 0:00:25]} Kd6 {[%emt 0:00:47]} 24. Rfd1 {[%emt 0:00:02]} Bb5 {[%emt 0:00:20]} 25. Nc7+ {[%emt 0:00:20]} 1-0

[Event "Kupreichik Memorial Open 2018"]
[Site "Minsk"]
[Date "2018.06.22"]
[Round "5"]
[White "Kalugin, Sergey G"]
[Black "Tkachou, Pavel"]
[Result "1/2-1/2"]
[ECO "C02"]
[WhiteElo "2334"]
[BlackElo "1535"]
[Annotator "NA"]
[PlyCount "70"]
[EventDate "2018.06.21"]
[EventCountry "BLR"]
[SourceTitle "playchess.com"]
[Source "ChessBase"]
[SourceQuality "1"]
[TimeControl "900+10"]

1. e4 {[%emt 0:00:00]} e6 {[%emt 0:00:03]} 2. d4 {[%emt 0:00:01]} d5 {[%emt 0:00:02]} 3. e5 {[%emt 0:00:08]} c5 {[%emt 0:00:01]} 4. c3 {[%emt 0:00:01]} Qb6 {[%emt 0:00:02]} 5. Nf3 {[%emt 0:00:01]} Nc6 {[%emt 0:00:05]} 6. a3 {[%emt 0:00:03]} Bd7 {[%emt 0:00:03]} 7. b4 {[%emt 0:00:48]} cxd4 {[%emt 0:00:01]} 8. cxd4 {[%emt 0:00:01]} Rc8 {[%emt 0:00:02]} 9. Be3 {[%emt 0:01:40]} Nh6 {[%emt 0:00:02]} 10. Bd3 {[%emt 0:00:05]} Ng4 {[%emt 0:00:07]} 11. O-O {[%emt 0:00:10]} g6 {[%emt 0:00:11]} 12. Ra2 {[%emt 0:01:04]} Nxe3 {[%emt 0:00:20]} 13. fxe3 {[%emt 0:00:02]} Bh6 {[%emt 0:01:36]} 14. Qe1 {[%emt 0:02:59]} Ne7 {[%emt 0:01:53]} 15. h4 {[%emt 0:03:20]} Nf5 {[%emt 0:00:51]} 16. Re2 {[%emt 0:00:15]} Bb5 {[%emt 0:02:57]} 17. Bxb5+ {[%emt 0:00:15]} Qxb5 {[%emt 0:00:03]} 18. Ng5 {[%emt 0:01:07]} O-O {[%emt 0:03:07]} 19. Rd2 {[%emt 0:02:08]} Qd7 {[%emt 0:03:01]} 20. g4 {[%emt 0:00:20]} Bxg5 {[%emt 0:01:26]} 21. hxg5 {[%emt 0:00:09]} Ng7 {[%emt 0:00:15]} 22. Rh2 {[%emt 0:00:05]} Qe7 {[%emt 0:00:27]} 23. Rf6 {[%emt 0:00:47]} h5 {[%emt 0:00:30]} 24. gxh6 {[%emt 0:01:03]} Ne8 {[%emt 0:00:01]} 25. h7+ {[%emt 0:00:48]} Kh8 {[%emt 0:00:01]} 26. Rf1 {[%emt 0:00:35]} Qg5 {[%emt 0:00:09]} 27. Qg3 {[%emt 0:00:11]} Ng7 {[%emt 0:00:26]} 28. Rg2 {[%emt 0:00:37]} b5 {[%emt 0:01:14]} 29. Qh3 {[%emt 0:00:16]} Rc7 {[%emt 0:00:40]} 30. Kh2 {[%emt 0:00:05]} Rfc8 {[%emt 0:00:06]} 31. Rgf2 {[%emt 0:00:05]} Rc2 {[%emt 0:00:12]} 32. Nd2 {[%emt 0:00:29]} R8c7 {[%emt 0:00:13]} 33. Nb1 {[%emt 0:00:17]} Rc8 {[%emt 0:00:07]} 34. Qf3 {[%emt 0:00:16]} R8c7 {[%emt 0:00:04]} 35. Qh3 {[%emt 0:00:05]} Rc8 {[%emt 0:00:01]} 1/2-1/2

[Event "Kupreichik Memorial Open 2018"]
[Site "Minsk"]
[Date "2018.06.22"]
[Round "5"]
[White "Nomin-Erdene, Davaademberel"]
[Black "Kirilin, Dmitrij"]
[Result "1/2-1/2"]
[ECO "B90"]
[WhiteElo "2312"]
[BlackElo "1898"]
[Annotator "NA"]
[PlyCount "101"]
[EventDate "2018.06.21"]
[EventCountry "BLR"]
[SourceTitle "playchess.com"]
[Source "ChessBase"]
[SourceQuality "1"]
[TimeControl "900+10"]

1. e4 {[%emt 0:00:00]} c5 {[%emt 0:00:02]} 2. Nf3 {[%emt 0:00:00]} d6 {[%emt 0:00:01]} 3. d4 {[%emt 0:00:00]} cxd4 {[%emt 0:00:01]} 4. Nxd4 {[%emt 0:00:00]} Nf6 {[%emt 0:00:01]} 5. Nc3 {[%emt 0:00:00]} a6 {[%emt 0:00:01]} 6. Be3 {[%emt 0:00:00]} e6 {[%emt 0:00:02]} 7. f3 {[%emt 0:00:00]} Qc7 {[%emt 0:00:09]} 8. Qd2 {[%emt 0:00:14]} b5 {[%emt 0:00:12]} 9. g4 {[%emt 0:00:02]} Bb7 {[%emt 0:00:55]} 10. O-O-O {[%emt 0:01:25]} b4 {[%emt 0:01:46]} 11. Na4 {[%emt 0:01:22]} d5 {[%emt 0:01:57]} 12. e5 {[%emt 0:01:42]} Nfd7 {[%emt 0:01:00]} 13. f4 {[%emt 0:00:00]} Nc6 {[%emt 0:00:29]} 14. Qf2 {[%emt 0:03:39]} Nxd4 {[%emt 0:01:43]} 15. Bxd4 {[%emt 0:00:01]} Qa5 {[%emt 0:00:47]} 16. b3 {[%emt 0:00:49]} Rc8 {[%emt 0:01:50]} 17. Kb1 {[%emt 0:00:25]} Bc6 {[%emt 0:00:21]} 18. Nb6 {[%emt 0:01:01]} Nxb6 {[%emt 0:00:01]} 19. Bxb6 {[%emt 0:00:01]} Qa3 {[%emt 0:00:01]} 20. f5 {[%emt 0:00:22]} Be7 {[%emt 0:01:37]} 21. Bd3 {[%emt 0:00:50]} Bb5 {[%emt 0:00:08]} 22. Rhf1 {[%emt 0:00:43]} Bxd3 {[%emt 0:00:33]} 23. Rxd3 {[%emt 0:00:01]} Rc3 {[%emt 0:00:07]} 24. Bd4 {[%emt 0:02:15]} Rxd3 {[%emt 0:00:45]} 25. cxd3 {[%emt 0:00:02]} Kd7 {[%emt 0:01:12]} 26. Bb2 {[%emt 0:01:06]} Qa5 {[%emt 0:00:01]} 27. Rc1 {[%emt 0:00:46]} Rc8 {[%emt 0:00:11]} 28. fxe6+ {[%emt 0:00:01]} fxe6 {[%emt 0:00:01]} 29. Rxc8 Kxc8 {[%emt 0:00:01]} 30. Qf7 {[%emt 0:01:11]} Kd7 {[%emt 0:00:17]} 31. Qxg7 {[%emt 0:01:23]} Qb6 {[%emt 0:00:00]} 32. d4 {[%emt 0:00:11]} Qb5 {[%emt 0:00:25]} 33. Qxh7 {[%emt 0:00:01]} Qe2 {[%emt 0:00:17]} 34. g5 {[%emt 0:00:21]} Qd1+ {[%emt 0:00:18]} 35. Bc1 {[%emt 0:00:03]} Qxd4 {[%emt 0:00:02]} 36. Qc2 {[%emt 0:00:39]} Qxe5 {[%emt 0:00:30]} 37. h4 {[%emt 0:00:01]} Ke8 {[%emt 0:00:22]} 38. h5 {[%emt 0:00:04]} Kf8 {[%emt 0:00:37]} 39. Qc8+ {[%emt 0:00:11]} Kf7 {[%emt 0:00:14]} 40. g6+ {[%emt 0:00:02]} Kg7 {[%emt 0:00:02]} 41. Bb2 {[%emt 0:00:00]} d4 {[%emt 0:00:04]} 42. Qb7 {[%emt 0:00:39]} Qf5+ {[%emt 0:00:24]} 43. Kc1 {[%emt 0:00:01]} Qf1+ {[%emt 0:00:18]} 44. Kd2 {[%emt 0:00:02]} Qf2+ {[%emt 0:00:35]} 45. Kd1 {[%emt 0:00:31]} Qf1+ {[%emt 0:00:05]} 46. Kd2 {[%emt 0:00:07]} Qf2+ {[%emt 0:00:01]} 47. Kd1 {[%emt 0:00:20]} Qf1+ {[%emt 0:00:03]} 48. Kd2 {[%emt 0:00:04]} Qf2+ {[%emt 0:00:00]} 49. Kd1 {[%emt 0:00:18]} Qf1+ {[%emt 0:00:01]} 50. Kd2 {[%emt 0:00:01]} Qf2+ {[%emt 0:00:01]} 51. Kd1 {[%emt 0:00:16]} 1/2-1/2